[Event "*** SCC Grand Prix: Titled Tuesday Blitz"]
[Site "Chess.com"]
[Date "2020.07.21"]
[Round "2"]
[White "N00bM3ster"]
[Black "korkmaz16"]
[Result "0-1"]
[WhiteElo "2743"]
[BlackElo "2344"]
[TimeControl "180+1"]
[EndTime "10:16:12 PDT"]
[Termination "korkmaz16 won by checkmate"]

1. e4 {[%clk 0:03:00]} 1... d5 {[%clk 0:02:54.4]} 2. exd5 {[%clk 0:02:55.1]}
2... Nf6 {[%clk 0:02:53.6]} 3. d4 {[%clk 0:02:53.8]} 3... Bg4 {[%clk 0:02:52.7]}
4. Nf3 {[%clk 0:02:49.6]} 4... Qxd5 {[%clk 0:02:07.3]} 5. Nc3 {[%clk 0:02:46.9]}
5... Qh5 {[%clk 0:02:04.7]} 6. Be2 {[%clk 0:02:44.5]} 6... Nc6 {[%clk
0:02:02.7]} 7. h3 {[%clk 0:02:44.8]} 7... O-O-O {[%clk 0:02:02.3]} 8. O-O {[%clk
0:02:42.4]} 8... Nxd4 {[%clk 0:01:36.7]} 9. Nxd4 {[%clk 0:02:23.4]} 9... Bxe2
{[%clk 0:01:36.3]} 10. Ncxe2 {[%clk 0:02:23.9]} 10... e5 {[%clk 0:01:25.2]} 11.
Qd3 {[%clk 0:02:22.1]} 11... Bc5 {[%clk 0:01:20.4]} 12. Qf5+ {[%clk 0:02:21.6]}
12... Qxf5 {[%clk 0:01:11.1]} 13. Nxf5 {[%clk 0:02:22.5]} 13... g6 {[%clk
0:01:10.9]} 14. Be3 {[%clk 0:02:21.2]} 14... Bxe3 {[%clk 0:01:06.1]} 15. Nxe3
{[%clk 0:02:21.5]} 15... Rd2 {[%clk 0:01:06.2]} 16. Nc3 {[%clk 0:02:21.1]} 16...
Rhd8 {[%clk 0:01:01.6]} 17. Rad1 {[%clk 0:02:19.6]} 17... Nh5 {[%clk 0:00:58.2]}
18. Rxd2 {[%clk 0:02:19.7]} 18... Rxd2 {[%clk 0:00:57.7]} 19. Rd1 {[%clk
0:02:20.6]} 19... Rxd1+ {[%clk 0:00:57.3]} 20. Ncxd1 {[%clk 0:02:19.9]} 20... f5
{[%clk 0:00:58.2]} 21. Nc4 {[%clk 0:02:19.5]} 21... e4 {[%clk 0:00:58]} 22. Kf1
{[%clk 0:02:19.9]} 22... Nf4 {[%clk 0:00:55.9]} 23. h4 {[%clk 0:02:16.3]} 23...
Kd7 {[%clk 0:00:54.1]} 24. g3 {[%clk 0:02:16.1]} 24... Nd5 {[%clk 0:00:51.8]}
25. c3 {[%clk 0:02:16.3]} 25... Ke6 {[%clk 0:00:51.2]} 26. Ke2 {[%clk
0:02:15.6]} 26... h6 {[%clk 0:00:44.5]} 27. Nde3 {[%clk 0:02:13.3]} 27... Ne7
{[%clk 0:00:41.1]} 28. Ng2 {[%clk 0:02:12.4]} 28... g5 {[%clk 0:00:40.7]} 29.
hxg5 {[%clk 0:02:10.6]} 29... hxg5 {[%clk 0:00:41.6]} 30. f3 {[%clk 0:02:10.2]}
30... exf3+ {[%clk 0:00:40.6]} 31. Kxf3 {[%clk 0:02:10]} 31... Nd5 {[%clk
0:00:31.1]} 32. Nce3 {[%clk 0:01:56]} 32... Nf6 {[%clk 0:00:26.8]} 33. g4 {[%clk
0:01:55.6]} 33... f4 {[%clk 0:00:26.8]} 34. Nf5 {[%clk 0:01:53.5]} 34... Ke5
{[%clk 0:00:19.7]} 35. Ne1 {[%clk 0:01:50.2]} 35... Nxg4 {[%clk 0:00:12.8]} 36.
Nd3+ {[%clk 0:01:51.1]} 36... Kxf5 {[%clk 0:00:12.7]} 37. Nc5 {[%clk 0:01:44]}
37... Ne5+ {[%clk 0:00:12.8]} 38. Ke2 {[%clk 0:01:44]} 38... g4 {[%clk
0:00:12.9]} 39. Nxb7 {[%clk 0:01:44.2]} 39... g3 {[%clk 0:00:12.7]} 40. Na5
{[%clk 0:01:43.7]} 40... f3+ {[%clk 0:00:13.2]} 41. Ke3 {[%clk 0:01:44.2]} 41...
g2 {[%clk 0:00:13.6]} 42. Kf2 {[%clk 0:01:43.5]} 42... Kf4 {[%clk 0:00:13.8]}
43. Nb3 {[%clk 0:01:40.5]} 43... Ng4+ {[%clk 0:00:14.7]} 44. Kg1 {[%clk
0:01:40.6]} 44... Kg3 {[%clk 0:00:15.6]} 45. Nd4 {[%clk 0:01:40.1]} 45... f2#
{[%clk 0:00:16.2]} 0-1

[Event "*** SCC Grand Prix: Titled Tuesday Blitz"]
[Site "Chess.com"]
[Date "2020.07.21"]
[Round "2"]
[White "VovenRogel"]
[Black "LilRag"]
[Result "1-0"]
[WhiteElo "2738"]
[BlackElo "2498"]
[TimeControl "180+1"]
[EndTime "10:16:16 PDT"]
[Termination "VovenRogel won by resignation"]

1. d4 {[%clk 0:02:15.1]} 1... Nf6 {[%clk 0:02:58.7]} 2. c4 {[%clk 0:02:13.3]}
2... e6 {[%clk 0:02:58.8]} 3. Nf3 {[%clk 0:02:13.1]} 3... d5 {[%clk 0:02:58.9]}
4. e3 {[%clk 0:02:13]} 4... Be7 {[%clk 0:02:58.7]} 5. Nc3 {[%clk 0:02:12.2]}
5... O-O {[%clk 0:02:59.1]} 6. b3 {[%clk 0:02:09.7]} 6... b6 {[%clk 0:02:56.9]}
7. Bb2 {[%clk 0:02:09.1]} 7... Bb7 {[%clk 0:02:57.4]} 8. Be2 {[%clk 0:02:07.9]}
8... Nbd7 {[%clk 0:02:57.8]} 9. O-O {[%clk 0:02:06.4]} 9... c5 {[%clk
0:02:58.2]} 10. Rc1 {[%clk 0:02:03.5]} 10... Rc8 {[%clk 0:02:57.4]} 11. cxd5
{[%clk 0:01:56]} 11... Nxd5 {[%clk 0:02:56.7]} 12. Nxd5 {[%clk 0:01:56]} 12...
Bxd5 {[%clk 0:02:56]} 13. Ba6 {[%clk 0:01:55.4]} 13... Ra8 {[%clk 0:02:49.2]}
14. Qe2 {[%clk 0:01:54.6]} 14... cxd4 {[%clk 0:02:48.8]} 15. e4 {[%clk
0:01:52.3]} 15... d3 {[%clk 0:02:46.1]} 16. Qxd3 {[%clk 0:01:36.5]} 16... Nc5
{[%clk 0:02:34.5]} 17. Rxc5 {[%clk 0:01:35.5]} 17... Bxc5 {[%clk 0:02:33.7]} 18.
exd5 {[%clk 0:01:33.5]} 18... Qxd5 {[%clk 0:02:34.3]} 19. Qc3 {[%clk 0:01:27.1]}
19... f6 {[%clk 0:02:32.7]} 20. Bc4 {[%clk 0:01:26.4]} 20... Qd7 {[%clk
0:02:29.6]} 21. Re1 {[%clk 0:01:24.7]} 21... Rfe8 {[%clk 0:02:27.7]} 22. b4
{[%clk 0:01:23.3]} 22... Bf8 {[%clk 0:02:24.6]} 23. Qb3 {[%clk 0:01:23]} 23...
Kh8 {[%clk 0:02:21.5]} 24. Bxe6 {[%clk 0:01:22.6]} 24... Qb5 {[%clk 0:02:19.3]}
25. a3 {[%clk 0:01:17.2]} 25... Rad8 {[%clk 0:02:18.5]} 26. Nd4 {[%clk
0:01:09.8]} 26... Qg5 {[%clk 0:01:47.8]} 27. Rf1 {[%clk 0:01:07.7]} 27... Bd6
{[%clk 0:01:44.5]} 28. Nf3 {[%clk 0:01:04.5]} 28... Qb5 {[%clk 0:01:41]} 29. Bf7
{[%clk 0:01:01.8]} 29... Re7 {[%clk 0:01:36.8]} 30. Bc4 {[%clk 0:01:01.2]} 30...
Qh5 {[%clk 0:01:33.4]} 31. g3 {[%clk 0:00:58.4]} 31... Rde8 {[%clk 0:01:31.6]}
32. Kg2 {[%clk 0:00:57.5]} 32... Qg4 {[%clk 0:01:25.5]} 33. Rd1 {[%clk
0:00:53.9]} 33... Bc7 {[%clk 0:01:24.5]} 34. Rd4 {[%clk 0:00:53.2]} 34... Qf5
{[%clk 0:01:21]} 35. Bd3 {[%clk 0:00:52.6]} 35... Qe6 {[%clk 0:01:18.9]} 36. Qc2
{[%clk 0:00:47.5]} 36... h6 {[%clk 0:01:14.3]} 37. Nh4 {[%clk 0:00:43.6]} 1-0

[Event "*** SCC Grand Prix: Titled Tuesday Blitz"]
[Site "Chess.com"]
[Date "2020.07.21"]
[Round "2"]
[White "PotapovaM"]
[Black "Julianos82"]
[Result "1-0"]
[WhiteElo "2467"]
[BlackElo "2258"]
[TimeControl "180+1"]
[EndTime "10:16:19 PDT"]
[Termination "PotapovaM won by resignation"]

1. d4 {[%clk 0:03:00.9]} 1... d5 {[%clk 0:02:58.3]} 2. c4 {[%clk 0:03:01.5]}
2... dxc4 {[%clk 0:02:59.2]} 3. e4 {[%clk 0:03:01.2]} 3... Nc6 {[%clk
0:02:58.7]} 4. d5 {[%clk 0:02:53.7]} 4... Ne5 {[%clk 0:02:57.2]} 5. Bf4 {[%clk
0:02:53.4]} 5... Ng6 {[%clk 0:02:56.9]} 6. Bg3 {[%clk 0:02:53.2]} 6... e5 {[%clk
0:02:57]} 7. Nf3 {[%clk 0:02:51.1]} 7... Bd6 {[%clk 0:02:55.8]} 8. Bxc4 {[%clk
0:02:50.3]} 8... a6 {[%clk 0:02:55.1]} 9. O-O {[%clk 0:02:49.4]} 9... Nf6 {[%clk
0:02:54]} 10. Nc3 {[%clk 0:02:49]} 10... O-O {[%clk 0:02:52.2]} 11. Rc1 {[%clk
0:02:47.3]} 11... Bd7 {[%clk 0:02:51.8]} 12. Re1 {[%clk 0:02:43.2]} 12... Qe7
{[%clk 0:02:51.4]} 13. Nh4 {[%clk 0:02:33.4]} 13... Nxh4 {[%clk 0:02:41.1]} 14.
Bxh4 {[%clk 0:02:34.3]} 14... h6 {[%clk 0:02:39.7]} 15. a3 {[%clk 0:02:29.5]}
15... g5 {[%clk 0:02:17.6]} 16. Bg3 {[%clk 0:02:29.2]} 16... h5 {[%clk 0:02:11]}
17. h4 {[%clk 0:02:27.7]} 17... g4 {[%clk 0:02:04.8]} 18. Qd2 {[%clk 0:02:27.5]}
18... Kh7 {[%clk 0:01:55.6]} 19. Nd1 {[%clk 0:02:21.4]} 19... b5 {[%clk
0:01:43.7]} 20. Ba2 {[%clk 0:02:20]} 20... Rac8 {[%clk 0:01:36.1]} 21. Qa5
{[%clk 0:02:10.8]} 21... Ra8 {[%clk 0:01:31.9]} 22. Rc2 {[%clk 0:02:07.9]} 22...
Ng8 {[%clk 0:01:18.3]} 23. Qd2 {[%clk 0:02:03.8]} 23... Nf6 {[%clk 0:01:16.2]}
24. Bb1 {[%clk 0:01:59.3]} 24... Bc5 {[%clk 0:01:15.6]} 25. b4 {[%clk
0:01:54.1]} 25... Bb6 {[%clk 0:01:12.2]} 26. Rc1 {[%clk 0:01:51.1]} 26... Rac8
{[%clk 0:01:11.6]} 27. Ne3 {[%clk 0:01:49.3]} 27... Rfe8 {[%clk 0:01:02.1]} 28.
Nf5 {[%clk 0:01:43.5]} 28... Bxf5 {[%clk 0:01:01.4]} 29. exf5 {[%clk 0:01:44.4]}
29... e4 {[%clk 0:01:00]} 30. Bf4 {[%clk 0:01:24.9]} 30... Rcd8 {[%clk
0:00:56.9]} 31. Bg5 {[%clk 0:01:23]} 31... Qe5 {[%clk 0:00:56.9]} 32. Rc6 {[%clk
0:01:17.5]} 32... Rd6 {[%clk 0:00:52.1]} 33. Bf4 {[%clk 0:01:17.3]} 33... Qxf5
{[%clk 0:00:38.1]} 34. Bxd6 {[%clk 0:01:12.1]} 34... e3 {[%clk 0:00:23.3]} 35.
Bxf5+ {[%clk 0:01:10.7]} 1-0

[Event "*** SCC Grand Prix: Titled Tuesday Blitz"]
[Site "Chess.com"]
[Date "2020.07.21"]
[Round "2"]
[White "Keithonsky"]
[Black "tan275"]
[Result "1-0"]
[WhiteElo "2454"]
[BlackElo "2239"]
[TimeControl "180+1"]
[EndTime "10:16:21 PDT"]
[Termination "Keithonsky won by checkmate"]

1. d4 {[%clk 0:03:00.9]} 1... d5 {[%clk 0:02:48.4]} 2. c4 {[%clk 0:03:01.1]}
2... e6 {[%clk 0:02:47.6]} 3. Nf3 {[%clk 0:03:01.3]} 3... Nf6 {[%clk 0:02:46.7]}
4. g3 {[%clk 0:03:01.7]} 4... dxc4 {[%clk 0:02:46.1]} 5. Bg2 {[%clk 0:03:01.8]}
5... c5 {[%clk 0:02:46.7]} 6. O-O {[%clk 0:03:01.5]} 6... Nc6 {[%clk 0:02:47.1]}
7. dxc5 {[%clk 0:03:02.1]} 7... Qxd1 {[%clk 0:02:46.5]} 8. Rxd1 {[%clk 0:03:03]}
8... Bxc5 {[%clk 0:02:46.9]} 9. Nbd2 {[%clk 0:03:03.5]} 9... c3 {[%clk
0:02:46.6]} 10. bxc3 {[%clk 0:03:04.4]} 10... O-O {[%clk 0:02:46.9]} 11. Nb3
{[%clk 0:03:04.7]} 11... Be7 {[%clk 0:02:46.5]} 12. Nfd4 {[%clk 0:03:00.8]}
12... Bd7 {[%clk 0:02:46.2]} 13. Rb1 {[%clk 0:02:58.3]} 13... Rfd8 {[%clk
0:02:41]} 14. Bf4 {[%clk 0:02:53.4]} 14... Nd5 {[%clk 0:02:18.9]} 15. Bd2 {[%clk
0:02:50.6]} 15... Nxd4 {[%clk 0:02:14.9]} 16. cxd4 {[%clk 0:02:47.9]} 16... Bc6
{[%clk 0:02:14.9]} 17. Na5 {[%clk 0:02:44.8]} 17... Rab8 {[%clk 0:01:46.3]} 18.
Rdc1 {[%clk 0:02:39.8]} 18... g5 {[%clk 0:01:27.1]} 19. e4 {[%clk 0:02:37.6]}
19... Nb6 {[%clk 0:01:21.2]} 20. Be3 {[%clk 0:02:37.2]} 20... Ba4 {[%clk
0:01:13]} 21. Rc7 {[%clk 0:02:36.3]} 21... Bd6 {[%clk 0:01:04.5]} 22. Rxb7
{[%clk 0:02:34.5]} 22... g4 {[%clk 0:00:41]} 23. Rxa7 {[%clk 0:02:27.6]} 23...
Nd5 {[%clk 0:00:27.3]} 24. Nb7 {[%clk 0:02:16.4]} 24... Nxe3 {[%clk 0:00:24.7]}
25. Rxa4 {[%clk 0:02:13.7]} 25... Nxg2 {[%clk 0:00:19.3]} 26. Kxg2 {[%clk
0:02:14.6]} 26... Rd7 {[%clk 0:00:18.5]} 27. Nc5 {[%clk 0:01:56.4]} 27... Rxb1
{[%clk 0:00:15.3]} 28. Nxd7 {[%clk 0:01:55.8]} 28... Rd1 {[%clk 0:00:14.6]} 29.
e5 {[%clk 0:01:53.3]} 29... Be7 {[%clk 0:00:13.7]} 30. Rc4 {[%clk 0:01:50.2]}
30... Rd2 {[%clk 0:00:13.1]} 31. a4 {[%clk 0:01:50.1]} 31... Bg5 {[%clk
0:00:12.2]} 32. h3 {[%clk 0:01:46.3]} 32... Be3 {[%clk 0:00:11.7]} 33. hxg4
{[%clk 0:01:46.2]} 33... Rxf2+ {[%clk 0:00:11.6]} 34. Kh3 {[%clk 0:01:46]} 34...
Ra2 {[%clk 0:00:11.9]} 35. g5 {[%clk 0:01:41.7]} 35... Bg1 {[%clk 0:00:11.6]}
36. Kg4 {[%clk 0:01:42.6]} 36... Bh2 {[%clk 0:00:08.9]} 37. Nf6+ {[%clk
0:01:43.5]} 37... Kg7 {[%clk 0:00:08.3]} 38. Rc8 {[%clk 0:01:44.4]} 38... Rxa4
{[%clk 0:00:07.1]} 39. Rg8# {[%clk 0:01:44.9]} 1-0

[Event "*** SCC Grand Prix: Titled Tuesday Blitz"]
[Site "Chess.com"]
[Date "2020.07.21"]
[Round "2"]
[White "Xeniya2005"]
[Black "harkerchess"]
[Result "0-1"]
[WhiteElo "2376"]
[BlackElo "2118"]
[TimeControl "180+1"]
[EndTime "10:16:21 PDT"]
[Termination "harkerchess won by checkmate"]

1. e4 {[%clk 0:03:00.9]} 1... e5 {[%clk 0:03:00.4]} 2. Nf3 {[%clk 0:02:59.7]}
2... Nc6 {[%clk 0:03:00.8]} 3. Bc4 {[%clk 0:02:58.1]} 3... Bc5 {[%clk
0:03:01.1]} 4. c3 {[%clk 0:02:57.2]} 4... Nf6 {[%clk 0:03:01.1]} 5. d4 {[%clk
0:02:57]} 5... exd4 {[%clk 0:03:02]} 6. e5 {[%clk 0:02:55.8]} 6... d5 {[%clk
0:03:00.2]} 7. Bb5 {[%clk 0:02:54.4]} 7... Ne4 {[%clk 0:03:00.1]} 8. cxd4 {[%clk
0:02:53.8]} 8... Bb6 {[%clk 0:02:59.1]} 9. O-O {[%clk 0:02:51.1]} 9... Bg4
{[%clk 0:02:54.1]} 10. Be3 {[%clk 0:02:48]} 10... O-O {[%clk 0:02:53.9]} 11.
Bxc6 {[%clk 0:02:40.5]} 11... bxc6 {[%clk 0:02:54.8]} 12. Nc3 {[%clk 0:02:40.2]}
12... c5 {[%clk 0:02:47.5]} 13. dxc5 {[%clk 0:02:33.1]} 13... Bxf3 {[%clk
0:02:35]} 14. Qxf3 {[%clk 0:02:30.1]} 14... Bxc5 {[%clk 0:02:26.3]} 15. Nxe4
{[%clk 0:02:26.7]} 15... dxe4 {[%clk 0:02:20.6]} 16. Qxe4 {[%clk 0:02:24.7]}
16... Bxe3 {[%clk 0:02:21.5]} 17. Qxe3 {[%clk 0:02:24.1]} 17... Re8 {[%clk
0:02:20.3]} 18. Rfe1 {[%clk 0:02:21.4]} 18... Rb8 {[%clk 0:02:19.8]} 19. Rad1
{[%clk 0:02:19.6]} 19... Qe7 {[%clk 0:02:15.5]} 20. b3 {[%clk 0:02:19.2]} 20...
c5 {[%clk 0:02:12.5]} 21. Rd5 {[%clk 0:02:15.4]} 21... Rbc8 {[%clk 0:02:08.9]}
22. Rc1 {[%clk 0:02:14.4]} 22... Red8 {[%clk 0:02:00.5]} 23. Rcd1 {[%clk
0:01:59.3]} 23... Re8 {[%clk 0:01:57.3]} 24. h3 {[%clk 0:01:56.3]} 24... c4
{[%clk 0:01:53.5]} 25. bxc4 {[%clk 0:01:52.4]} 25... Rxc4 {[%clk 0:01:53.1]} 26.
Rd7 {[%clk 0:01:49.7]} 26... Qe6 {[%clk 0:01:51.3]} 27. R1d6 {[%clk 0:01:41.7]}
27... Qf5 {[%clk 0:01:45.6]} 28. Rxa7 {[%clk 0:01:20.4]} 28... h6 {[%clk
0:01:39.8]} 29. Rdd7 {[%clk 0:00:51.6]} 29... Rxe5 {[%clk 0:01:31.7]} 30. Qg3
{[%clk 0:00:30.3]} 30... Re1+ {[%clk 0:01:26]} 31. Kh2 {[%clk 0:00:30]} 31...
Rcc1 {[%clk 0:01:26.9]} 32. Qb3 {[%clk 0:00:12.1]} 32... Qf4+ {[%clk 0:01:17.7]}
33. Qg3 {[%clk 0:00:07]} 33... Rh1# {[%clk 0:01:16.9]} 0-1

[Event "*** SCC Grand Prix: Titled Tuesday Blitz"]
[Site "Chess.com"]
[Date "2020.07.21"]
[Round "2"]
[White "bsnsun"]
[Black "JiiHart"]
[Result "1-0"]
[WhiteElo "2385"]
[BlackElo "2083"]
[TimeControl "180+1"]
[EndTime "10:16:23 PDT"]
[Termination "bsnsun won by checkmate"]

1. Nf3 {[%clk 0:03:00.9]} 1... Nf6 {[%clk 0:02:58.2]} 2. d4 {[%clk 0:03:00.1]}
2... e6 {[%clk 0:02:57.9]} 3. c4 {[%clk 0:03:00.3]} 3... c5 {[%clk 0:02:56.9]}
4. d5 {[%clk 0:02:59.6]} 4... exd5 {[%clk 0:02:56.6]} 5. cxd5 {[%clk 0:03:00.1]}
5... d6 {[%clk 0:02:56.9]} 6. Nc3 {[%clk 0:03:00]} 6... g6 {[%clk 0:02:56.3]} 7.
e4 {[%clk 0:03:00]} 7... Bg7 {[%clk 0:02:56.1]} 8. h3 {[%clk 0:02:56.6]} 8...
O-O {[%clk 0:02:54.5]} 9. Bd3 {[%clk 0:02:54.7]} 9... b5 {[%clk 0:02:54]} 10.
Nxb5 {[%clk 0:02:37]} 10... Nxe4 {[%clk 0:02:53]} 11. O-O {[%clk 0:02:26.5]}
11... a6 {[%clk 0:02:27.4]} 12. Na3 {[%clk 0:02:23.8]} 12... Re8 {[%clk
0:02:20.8]} 13. Nc4 {[%clk 0:02:22.4]} 13... Bf5 {[%clk 0:01:45.9]} 14. Bf4
{[%clk 0:02:20.4]} 14... Bf8 {[%clk 0:01:27.1]} 15. Re1 {[%clk 0:02:15.2]} 15...
Ra7 {[%clk 0:01:19.3]} 16. Qc2 {[%clk 0:01:33.6]} 16... Rae7 {[%clk 0:00:59.6]}
17. Re2 {[%clk 0:01:33.1]} 17... a5 {[%clk 0:00:40.6]} 18. Rae1 {[%clk
0:01:29.1]} 18... Na6 {[%clk 0:00:40.5]} 19. Bxe4 {[%clk 0:01:23.7]} 19... Nb4
{[%clk 0:00:33.3]} 20. Qb1 {[%clk 0:01:20.7]} 20... Bxe4 {[%clk 0:00:23.4]} 21.
Rxe4 {[%clk 0:01:20.4]} 21... Rxe4 {[%clk 0:00:20.1]} 22. Rxe4 {[%clk
0:01:20.4]} 22... Rxe4 {[%clk 0:00:20.2]} 23. Qxe4 {[%clk 0:01:20.6]} 23... Nxa2
{[%clk 0:00:20.6]} 24. Bg5 {[%clk 0:00:57.9]} 24... Qc7 {[%clk 0:00:18.4]} 25.
Qe8 {[%clk 0:00:56.6]} 25... Kg7 {[%clk 0:00:15.4]} 26. Bh6+ {[%clk 0:00:53.8]}
26... Kxh6 {[%clk 0:00:15.1]} 27. Qxf8+ {[%clk 0:00:54.2]} 27... Kh5 {[%clk
0:00:15.2]} 28. g4# {[%clk 0:00:54.5]} 1-0

[Event "*** SCC Grand Prix: Titled Tuesday Blitz"]
[Site "Chess.com"]
[Date "2020.07.21"]
[Round "2"]
[White "TioCridineno"]
[Black "Kildepiotr"]
[Result "0-1"]
[WhiteElo "2182"]
[BlackElo "2612"]
[TimeControl "180+1"]
[EndTime "10:16:24 PDT"]
[Termination "Kildepiotr won by checkmate"]

1. e4 {[%clk 0:03:00.9]} 1... g6 {[%clk 0:02:58.5]} 2. d4 {[%clk 0:03:00.5]}
2... Bg7 {[%clk 0:02:58.6]} 3. Nc3 {[%clk 0:03:01.1]} 3... c6 {[%clk 0:02:58.4]}
4. f4 {[%clk 0:02:58.2]} 4... d5 {[%clk 0:02:58.1]} 5. e5 {[%clk 0:02:58.7]}
5... Nh6 {[%clk 0:02:58.2]} 6. Bd3 {[%clk 0:02:58.3]} 6... Bg4 {[%clk
0:02:51.8]} 7. Nge2 {[%clk 0:02:56.5]} 7... Nf5 {[%clk 0:02:51.1]} 8. h3 {[%clk
0:02:50.6]} 8... Bxe2 {[%clk 0:02:46.1]} 9. Nxe2 {[%clk 0:02:50.2]} 9... h5
{[%clk 0:02:45.9]} 10. c3 {[%clk 0:02:47.2]} 10... h4 {[%clk 0:02:44.5]} 11. Qc2
{[%clk 0:02:37.5]} 11... e6 {[%clk 0:02:44.6]} 12. Qb3 {[%clk 0:02:23.1]} 12...
Qc7 {[%clk 0:02:41.5]} 13. a4 {[%clk 0:02:19.3]} 13... Bf8 {[%clk 0:02:40.3]}
14. Bd2 {[%clk 0:02:13.6]} 14... c5 {[%clk 0:02:37.4]} 15. Bxf5 {[%clk
0:02:03.6]} 15... gxf5 {[%clk 0:02:36.8]} 16. Be3 {[%clk 0:02:04]} 16... c4
{[%clk 0:02:31.3]} 17. Qc2 {[%clk 0:02:01]} 17... Nc6 {[%clk 0:02:30.3]} 18. O-O
{[%clk 0:01:57.2]} 18... Na5 {[%clk 0:02:27.5]} 19. Kh2 {[%clk 0:01:54.6]} 19...
O-O-O {[%clk 0:02:26.7]} 20. Nc1 {[%clk 0:01:51.8]} 20... Be7 {[%clk 0:02:25.7]}
21. Rf2 {[%clk 0:01:52.2]} 21... Rhg8 {[%clk 0:02:22.3]} 22. b3 {[%clk
0:01:52.4]} 22... cxb3 {[%clk 0:02:21.2]} 23. Nxb3 {[%clk 0:01:52.1]} 23... Nc4
{[%clk 0:02:20.2]} 24. Bc1 {[%clk 0:01:34.7]} 24... Kb8 {[%clk 0:02:17.5]} 25.
Nd2 {[%clk 0:01:26.8]} 25... Rc8 {[%clk 0:02:10.9]} 26. Nxc4 {[%clk 0:01:26.4]}
26... Qxc4 {[%clk 0:02:10.2]} 27. Ba3 {[%clk 0:01:20.3]} 27... Bxa3 {[%clk
0:02:04.9]} 28. Rxa3 {[%clk 0:01:20.3]} 28... Rg3 {[%clk 0:02:04.1]} 29. Qb1
{[%clk 0:00:05.7]} 29... Rxc3 {[%clk 0:01:55.8]} 30. Raa2 {[%clk 0:00:06]} 30...
Qxd4 {[%clk 0:01:49.5]} 31. Rab2 {[%clk 0:00:06.2]} 31... R8c7 {[%clk 0:01:49]}
32. Qa2 {[%clk 0:00:02.7]} 32... Qe3 {[%clk 0:01:40]} 33. a5 {[%clk 0:00:03.2]}
33... Qg3+ {[%clk 0:01:39.2]} 34. Kg1 {[%clk 0:00:02.9]} 34... Rc1+ {[%clk
0:01:38.8]} 35. Rf1 {[%clk 0:00:03.4]} 35... Rxf1+ {[%clk 0:01:36.4]} 36. Kxf1
{[%clk 0:00:01.7]} 36... Rc1+ {[%clk 0:01:34.9]} 37. Ke2 {[%clk 0:00:02.2]}
37... Re1+ {[%clk 0:01:34.1]} 38. Kd2 {[%clk 0:00:02.1]} 38... Qe3+ {[%clk
0:01:34.1]} 39. Kc2 {[%clk 0:00:02.4]} 39... Rc1# {[%clk 0:01:33.8]} 0-1

[Event "*** SCC Grand Prix: Titled Tuesday Blitz"]
[Site "Chess.com"]
[Date "2020.07.21"]
[Round "2"]
[White "Eliwood44"]
[Black "DenisQ"]
[Result "0-1"]
[WhiteElo "2303"]
[BlackElo "2628"]
[TimeControl "180+1"]
[EndTime "10:16:25 PDT"]
[Termination "DenisQ won by resignation"]

1. d4 {[%clk 0:03:00.9]} 1... Nf6 {[%clk 0:02:58.7]} 2. Nf3 {[%clk 0:03:00]}
2... g6 {[%clk 0:02:58.4]} 3. Nc3 {[%clk 0:02:58]} 3... d5 {[%clk 0:02:55.9]} 4.
Bf4 {[%clk 0:02:57.7]} 4... Bg7 {[%clk 0:02:55.4]} 5. Nb5 {[%clk 0:02:56.3]}
5... Na6 {[%clk 0:02:53.9]} 6. e3 {[%clk 0:02:56.4]} 6... c6 {[%clk 0:02:51.7]}
7. Nc3 {[%clk 0:02:56.1]} 7... Nc7 {[%clk 0:02:48.9]} 8. h3 {[%clk 0:02:56.1]}
8... O-O {[%clk 0:02:48.6]} 9. Be2 {[%clk 0:02:56.2]} 9... Bf5 {[%clk
0:02:44.1]} 10. O-O {[%clk 0:02:55.5]} 10... Re8 {[%clk 0:02:41.7]} 11. Ne5
{[%clk 0:02:55]} 11... Nd7 {[%clk 0:02:39.6]} 12. Bd3 {[%clk 0:02:51.2]} 12...
Nxe5 {[%clk 0:02:37]} 13. dxe5 {[%clk 0:02:48.8]} 13... Bxd3 {[%clk 0:02:34.2]}
14. cxd3 {[%clk 0:02:49.6]} 14... d4 {[%clk 0:02:33.8]} 15. exd4 {[%clk
0:02:46.2]} 15... Ne6 {[%clk 0:02:31.7]} 16. Be3 {[%clk 0:02:41.6]} 16... Nxd4
{[%clk 0:02:30.9]} 17. f4 {[%clk 0:02:39.4]} 17... Qd7 {[%clk 0:02:28.4]} 18.
Ne2 {[%clk 0:02:37.6]} 18... Nxe2+ {[%clk 0:02:03.3]} 19. Qxe2 {[%clk
0:02:36.8]} 19... f6 {[%clk 0:02:02.2]} 20. d4 {[%clk 0:02:36]} 20... f5 {[%clk
0:02:00.6]} 21. Qc4+ {[%clk 0:02:31.5]} 21... e6 {[%clk 0:01:59.6]} 22. b4
{[%clk 0:02:28.5]} 22... Qd5 {[%clk 0:01:56.7]} 23. Qxd5 {[%clk 0:02:25.1]}
23... cxd5 {[%clk 0:01:55.3]} 24. Rfc1 {[%clk 0:02:25]} 24... Rec8 {[%clk
0:01:54.4]} 25. a4 {[%clk 0:02:20.2]} 25... Kf7 {[%clk 0:01:49.4]} 26. Kf2
{[%clk 0:02:18.9]} 26... Ke7 {[%clk 0:01:32.9]} 27. Ke2 {[%clk 0:02:18.2]} 27...
Kd7 {[%clk 0:01:32.7]} 28. Kd3 {[%clk 0:02:17.7]} 28... a6 {[%clk 0:01:31.1]}
29. Rxc8 {[%clk 0:01:56.1]} 29... Rxc8 {[%clk 0:01:29.9]} 30. Rc1 {[%clk
0:01:56.5]} 30... Rxc1 {[%clk 0:01:18.8]} 31. Bxc1 {[%clk 0:01:57.4]} 31... b5
{[%clk 0:01:18.1]} 32. axb5 {[%clk 0:01:55.4]} 32... axb5 {[%clk 0:01:19]} 33.
Bd2 {[%clk 0:01:45.5]} 33... Bf8 {[%clk 0:01:18.2]} 34. g4 {[%clk 0:01:43.7]}
34... fxg4 {[%clk 0:01:10.1]} 35. hxg4 {[%clk 0:01:44.6]} 35... h5 {[%clk
0:01:05.3]} 36. gxh5 {[%clk 0:01:43.2]} 36... gxh5 {[%clk 0:01:05]} 37. Ke3
{[%clk 0:01:42.7]} 37... Ke7 {[%clk 0:01:04.3]} 38. Kf3 {[%clk 0:01:42.3]} 38...
Kf7 {[%clk 0:01:04.2]} 39. Be1 {[%clk 0:01:16.2]} 39... Kg6 {[%clk 0:01:02.1]}
40. Bd2 {[%clk 0:01:14.5]} 40... Kf5 {[%clk 0:01:01.6]} 41. Be1 {[%clk
0:01:14.1]} 41... Bh6 {[%clk 0:00:58.4]} 42. Bd2 {[%clk 0:01:13.8]} 42... h4
{[%clk 0:00:57]} 43. Bc1 {[%clk 0:01:12.7]} 43... h3 {[%clk 0:00:56.3]} 44. Kg3
{[%clk 0:01:10.1]} 44... Bxf4+ {[%clk 0:00:46.5]} 45. Bxf4 {[%clk 0:01:09.6]}
45... h2 {[%clk 0:00:46]} 46. Kxh2 {[%clk 0:01:09.4]} 46... Kxf4 {[%clk
0:00:46.9]} 47. Kh3 {[%clk 0:01:09.7]} 47... Ke4 {[%clk 0:00:46.9]} 48. Kg4
{[%clk 0:01:10.1]} 48... Kxd4 {[%clk 0:00:47]} 0-1